[Event "*** Titled Tuesday Blitz"]
[Site "Chess.com"]
[Date "2020.12.01"]
[Round "7"]
[White "shnitez"]
[Black "Supernotar"]
[Result "1-0"]
[WhiteElo "2590"]
[BlackElo "2773"]
[TimeControl "180+1"]
[EndTime "11:17:42 PST"]
[Termination "shnitez won by resignation"]

1. c4 {[%clk 0:03:00.9]} 1... c5 {[%clk 0:03:00]} 2. Nf3 {[%clk 0:02:58.4]} 2...
Nc6 {[%clk 0:03:00]} 3. d4 {[%clk 0:02:57.2]} 3... cxd4 {[%clk 0:03:00]} 4. Nxd4
{[%clk 0:02:58.1]} 4... g6 {[%clk 0:02:56.4]} 5. g3 {[%clk 0:02:58.1]} 5... Bg7
{[%clk 0:02:56.7]} 6. Nc2 {[%clk 0:02:56.1]} 6... d6 {[%clk 0:02:56.9]} 7. Bg2
{[%clk 0:02:55]} 7... Nf6 {[%clk 0:02:57.1]} 8. O-O {[%clk 0:02:54.8]} 8... O-O
{[%clk 0:02:54.8]} 9. Nc3 {[%clk 0:02:55]} 9... Be6 {[%clk 0:02:54.4]} 10. Ne3
{[%clk 0:02:51.2]} 10... Rc8 {[%clk 0:02:50.6]} 11. Rb1 {[%clk 0:02:43]} 11...
Qd7 {[%clk 0:02:50.3]} 12. b3 {[%clk 0:02:39.7]} 12... Bh3 {[%clk 0:02:48.8]}
13. Bb2 {[%clk 0:02:33.7]} 13... Bxg2 {[%clk 0:02:48]} 14. Kxg2 {[%clk
0:02:34.6]} 14... h5 {[%clk 0:02:45.5]} 15. Ncd5 {[%clk 0:02:32.3]} 15... Nxd5
{[%clk 0:02:40.1]} 16. Nxd5 {[%clk 0:02:32.3]} 16... Bxb2 {[%clk 0:02:38.5]} 17.
Rxb2 {[%clk 0:02:33.2]} 17... h4 {[%clk 0:02:22.9]} 18. Rd2 {[%clk 0:02:28.8]}
18... h3+ {[%clk 0:02:22.5]} 19. Kg1 {[%clk 0:02:28.4]} 19... Qf5 {[%clk
0:02:18.8]} 20. Qb1 {[%clk 0:02:25.3]} 20... Qg5 {[%clk 0:02:08.2]} 21. Rfd1
{[%clk 0:02:22.4]} 21... Rfe8 {[%clk 0:02:04.3]} 22. Qe4 {[%clk 0:02:18.1]}
22... Kg7 {[%clk 0:01:55.3]} 23. Qf4 {[%clk 0:01:44.7]} 23... Qh5 {[%clk
0:01:49.5]} 24. Qe3 {[%clk 0:01:29.3]} 24... a6 {[%clk 0:01:35.7]} 25. Qb6
{[%clk 0:01:24.4]} 25... Rb8 {[%clk 0:01:28.7]} 26. c5 {[%clk 0:00:54.6]} 26...
dxc5 {[%clk 0:01:23.4]} 27. Qxc5 {[%clk 0:00:55.5]} 27... Kg8 {[%clk 0:01:18.6]}
28. Qe3 {[%clk 0:00:45.2]} 28... Kf8 {[%clk 0:01:02.7]} 29. Nf4 {[%clk
0:00:42.8]} 29... Qf5 {[%clk 0:00:57.3]} 30. Rd5 {[%clk 0:00:41]} 30... e5
{[%clk 0:00:54.6]} 31. Qd3 {[%clk 0:00:24.1]} 31... Qg4 {[%clk 0:00:41.8]} 32.
f3 {[%clk 0:00:15.3]} 32... Qc8 {[%clk 0:00:41.9]} 33. Nxg6+ {[%clk 0:00:14.7]}
33... fxg6 {[%clk 0:00:42]} 34. Qxg6 {[%clk 0:00:15.6]} 34... Qe6 {[%clk
0:00:39.1]} 35. Qh5 {[%clk 0:00:14.7]} 35... Rbd8 {[%clk 0:00:34.7]} 36. Qh8+
{[%clk 0:00:14.6]} 36... Kf7 {[%clk 0:00:31.2]} 37. Qh7+ {[%clk 0:00:14.7]}
37... Kf8 {[%clk 0:00:30.9]} 38. Qh8+ {[%clk 0:00:11.9]} 38... Ke7 {[%clk
0:00:30.1]} 39. Qg7+ {[%clk 0:00:10.7]} 39... Qf7 {[%clk 0:00:27.4]} 40. Rd7+
{[%clk 0:00:10.4]} 40... Rxd7 {[%clk 0:00:27.8]} 41. Rxd7+ {[%clk 0:00:11.1]}
41... Kxd7 {[%clk 0:00:28.3]} 42. Qxf7+ {[%clk 0:00:12]} 42... Re7 {[%clk
0:00:24.3]} 43. Qf5+ {[%clk 0:00:11.7]} 43... Kd6 {[%clk 0:00:24.8]} 44. Qxh3
{[%clk 0:00:12.6]} 44... Nd4 {[%clk 0:00:24.4]} 45. Qh6+ {[%clk 0:00:12.7]}
45... Re6 {[%clk 0:00:24.4]} 46. Qd2 {[%clk 0:00:13]} 46... Ke7 {[%clk
0:00:22.9]} 47. Kg2 {[%clk 0:00:12.8]} 47... Rc6 {[%clk 0:00:22.6]} 48. Qg5+
{[%clk 0:00:11.4]} 48... Ke6 {[%clk 0:00:21.8]} 49. Qg6+ {[%clk 0:00:11.1]}
49... Kd5 {[%clk 0:00:21]} 50. Qe4+ {[%clk 0:00:11.1]} 50... Kd6 {[%clk
0:00:20.9]} 51. f4 {[%clk 0:00:10.9]} 51... Ne6 {[%clk 0:00:12]} 52. Qxe5+
{[%clk 0:00:10.3]} 52... Kd7 {[%clk 0:00:12.2]} 53. f5 {[%clk 0:00:10.5]} 53...
Nc7 {[%clk 0:00:10.8]} 54. h4 {[%clk 0:00:09.7]} 54... Rd6 {[%clk 0:00:09]} 55.
h5 {[%clk 0:00:09.3]} 55... Rd5 {[%clk 0:00:09.5]} 56. Qg7+ {[%clk 0:00:09]}
56... Kc6 {[%clk 0:00:09.8]} 57. Qg6+ {[%clk 0:00:08.6]} 57... Kb5 {[%clk
0:00:07.8]} 58. h6 {[%clk 0:00:08.9]} 58... Re5 {[%clk 0:00:05.4]} 59. Qh5
{[%clk 0:00:07.6]} 59... Nd5 {[%clk 0:00:05.1]} 60. h7 {[%clk 0:00:07.1]} 60...
Ne3+ {[%clk 0:00:05.2]} 61. Kf3 {[%clk 0:00:06.8]} 61... Nxf5 {[%clk 0:00:04.1]}
62. h8=Q {[%clk 0:00:05.7]} 62... Nd4+ {[%clk 0:00:04.3]} 63. Kg2 {[%clk
0:00:05.4]} 63... Rxh5 {[%clk 0:00:02.8]} 64. Qxh5+ {[%clk 0:00:04.7]} 64... Kb4
{[%clk 0:00:03.5]} 65. Qh4 {[%clk 0:00:04.6]} 65... Kc3 {[%clk 0:00:03.6]} 66.
Qe4 {[%clk 0:00:05]} 66... Nc2 {[%clk 0:00:03.5]} 67. Qd3+ {[%clk 0:00:05.2]}
67... Kb2 {[%clk 0:00:03.5]} 68. g4 {[%clk 0:00:06.1]} 68... Ne1+ {[%clk
0:00:03.9]} 69. Kg3 {[%clk 0:00:05.5]} 69... Nxd3 {[%clk 0:00:04.3]} 70. exd3
{[%clk 0:00:06.4]} 70... Kxa2 {[%clk 0:00:04.9]} 71. g5 {[%clk 0:00:07.3]} 71...
Kxb3 {[%clk 0:00:05.3]} 72. g6 {[%clk 0:00:08.2]} 72... a5 {[%clk 0:00:06.2]}
73. g7 {[%clk 0:00:09.1]} 73... a4 {[%clk 0:00:07.1]} 74. g8=Q+ {[%clk 0:00:10]}
74... Kb2 {[%clk 0:00:07.8]} 75. Qb8 {[%clk 0:00:09.4]} 75... a3 {[%clk
0:00:07.6]} 76. Qxb7+ {[%clk 0:00:09.7]} 76... Ka1 {[%clk 0:00:07.8]} 77. Qa6
{[%clk 0:00:10.2]} 77... a2 {[%clk 0:00:08]} 78. d4 {[%clk 0:00:10.5]} 78... Kb1
{[%clk 0:00:08.5]} 79. d5 {[%clk 0:00:11.4]} 79... a1=Q {[%clk 0:00:08.7]} 80.
Qxa1+ {[%clk 0:00:11.2]} 80... Kxa1 {[%clk 0:00:09.6]} 81. d6 {[%clk 0:00:12.1]}
1-0

[Event "*** Titled Tuesday Blitz"]
[Site "Chess.com"]
[Date "2020.12.01"]
[Round "7"]
[White "Bodnar_Mykola"]
[Black "kagg1125"]
[Result "1-0"]
[WhiteElo "2400"]
[BlackElo "2544"]
[TimeControl "180+1"]
[EndTime "11:17:46 PST"]
[Termination "Bodnar_Mykola won on time"]

1. e4 {[%clk 0:03:00.9]} 1... e5 {[%clk 0:02:54.1]} 2. Nf3 {[%clk 0:03:00.8]}
2... Nc6 {[%clk 0:02:54.1]} 3. Bb5 {[%clk 0:03:01.3]} 3... a6 {[%clk 0:02:54.1]}
4. Ba4 {[%clk 0:03:01.2]} 4... Nf6 {[%clk 0:02:54.6]} 5. O-O {[%clk 0:03:00.3]}
5... b5 {[%clk 0:02:54.6]} 6. Bb3 {[%clk 0:02:59.7]} 6... Bc5 {[%clk 0:02:55]}
7. Re1 {[%clk 0:02:57.4]} 7... d6 {[%clk 0:02:52.5]} 8. h3 {[%clk 0:02:56.3]}
8... O-O {[%clk 0:02:51.2]} 9. c3 {[%clk 0:02:56.4]} 9... Bb6 {[%clk 0:02:49.4]}
10. d4 {[%clk 0:02:55.5]} 10... h6 {[%clk 0:02:49.4]} 11. Be3 {[%clk 0:02:53.8]}
11... Rb8 {[%clk 0:02:48.9]} 12. Nbd2 {[%clk 0:02:53.1]} 12... Re8 {[%clk
0:02:48.2]} 13. Bc2 {[%clk 0:02:49.6]} 13... Bb7 {[%clk 0:02:35.1]} 14. a4
{[%clk 0:02:33.2]} 14... exd4 {[%clk 0:02:34.4]} 15. Nxd4 {[%clk 0:02:00.7]}
15... Nxd4 {[%clk 0:02:26.3]} 16. Bxd4 {[%clk 0:02:01.6]} 16... Bxd4 {[%clk
0:02:14.4]} 17. cxd4 {[%clk 0:02:02.5]} 17... c5 {[%clk 0:02:14.7]} 18. axb5
{[%clk 0:01:51.3]} 18... axb5 {[%clk 0:02:13.8]} 19. e5 {[%clk 0:01:51.9]} 19...
dxe5 {[%clk 0:02:13.7]} 20. dxe5 {[%clk 0:01:52.4]} 20... Nd5 {[%clk 0:01:59.5]}
21. Ne4 {[%clk 0:01:50.6]} 21... Nb4 {[%clk 0:01:57.7]} 22. Qxd8 {[%clk
0:01:48.1]} 22... Rexd8 {[%clk 0:01:54.8]} 23. Bb1 {[%clk 0:01:48.2]} 23... Bxe4
{[%clk 0:01:47.1]} 24. Bxe4 {[%clk 0:01:49.1]} 24... Rd2 {[%clk 0:01:38]} 25. b3
{[%clk 0:01:43.7]} 25... Rbd8 {[%clk 0:01:28.1]} 26. Rac1 {[%clk 0:01:41]} 26...
c4 {[%clk 0:00:57.1]} 27. bxc4 {[%clk 0:01:38.7]} 27... Na2 {[%clk 0:00:57.1]}
28. cxb5 {[%clk 0:00:41.4]} 28... Nxc1 {[%clk 0:00:55.1]} 29. Rxc1 {[%clk
0:00:42.3]} 29... Rd1+ {[%clk 0:00:53.7]} 30. Rxd1 {[%clk 0:00:42.6]} 30...
Rxd1+ {[%clk 0:00:52.7]} 31. Kh2 {[%clk 0:00:43.5]} 31... Rd4 {[%clk 0:00:49.4]}
32. Bc6 {[%clk 0:00:43.4]} 32... Rb4 {[%clk 0:00:49.3]} 33. Kg3 {[%clk
0:00:43.6]} 33... g5 {[%clk 0:00:47]} 34. Kf3 {[%clk 0:00:42.4]} 34... Kf8
{[%clk 0:00:46.6]} 35. Ke3 {[%clk 0:00:41.9]} 35... Ke7 {[%clk 0:00:47.2]} 36.
g3 {[%clk 0:00:42]} 36... f6 {[%clk 0:00:31.8]} 37. exf6+ {[%clk 0:00:36]} 37...
Kxf6 {[%clk 0:00:32.7]} 38. Kf3 {[%clk 0:00:35]} 38... Ke5 {[%clk 0:00:31.5]}
39. Kg2 {[%clk 0:00:33.8]} 39... Rb2 {[%clk 0:00:29.2]} 40. Be8 {[%clk
0:00:33.1]} 40... Rb3 {[%clk 0:00:27.5]} 41. Bc6 {[%clk 0:00:33.3]} 41... Kd4
{[%clk 0:00:27.7]} 42. h4 {[%clk 0:00:32.4]} 42... gxh4 {[%clk 0:00:22.8]} 43.
gxh4 {[%clk 0:00:33.3]} 43... Ke5 {[%clk 0:00:23.4]} 44. h5 {[%clk 0:00:30.8]}
44... Kf4 {[%clk 0:00:23.2]} 45. Be8 {[%clk 0:00:31.4]} 45... Kg4 {[%clk
0:00:21.8]} 46. Kf1 {[%clk 0:00:18.6]} 46... Rb2 {[%clk 0:00:20.9]} 47. Ke1
{[%clk 0:00:17]} 47... Kf4 {[%clk 0:00:18.8]} 48. Bc6 {[%clk 0:00:16.5]} 48...
Ke5 {[%clk 0:00:18.1]} 49. Kf1 {[%clk 0:00:14.6]} 49... Rb3 {[%clk 0:00:15.9]}
50. Ke2 {[%clk 0:00:14.6]} 50... Kf4 {[%clk 0:00:15.2]} 51. Be8 {[%clk
0:00:13.3]} 51... Ke5 {[%clk 0:00:12.8]} 52. Bc6 {[%clk 0:00:12.4]} 52... Kd6
{[%clk 0:00:11.4]} 53. Kf1 {[%clk 0:00:11.9]} 53... Rh3 {[%clk 0:00:09.6]} 54.
Be8 {[%clk 0:00:11.2]} 54... Rb3 {[%clk 0:00:08.1]} 55. Kg2 {[%clk 0:00:10.3]}
55... Ke6 {[%clk 0:00:07.8]} 56. Bc6 {[%clk 0:00:09.9]} 56... Rb4 {[%clk
0:00:08.3]} 57. Kf3 {[%clk 0:00:09.9]} 57... Kf6 {[%clk 0:00:09.2]} 58. Kg3
{[%clk 0:00:10]} 58... Kg5 {[%clk 0:00:09.5]} 59. Be8 {[%clk 0:00:10.3]} 59...
Rg4+ {[%clk 0:00:09.6]} 60. Kf3 {[%clk 0:00:09.7]} 60... Rf4+ {[%clk 0:00:09.5]}
61. Ke3 {[%clk 0:00:09.6]} 61... Rf8 {[%clk 0:00:09.1]} 62. Bg6 {[%clk
0:00:07.3]} 62... Kf6 {[%clk 0:00:09]} 63. Kd4 {[%clk 0:00:07.2]} 63... Rd8+
{[%clk 0:00:08.5]} 64. Kc5 {[%clk 0:00:07.4]} 64... Ke5 {[%clk 0:00:09.1]} 65.
b6 {[%clk 0:00:06.6]} 65... Rc8+ {[%clk 0:00:08.6]} 66. Kb5 {[%clk 0:00:07]}
66... Kd6 {[%clk 0:00:09.3]} 67. b7 {[%clk 0:00:06.2]} 67... Rb8 {[%clk
0:00:09.4]} 68. Kb6 {[%clk 0:00:06.7]} 68... Rd8 {[%clk 0:00:06]} 69. Bf5 {[%clk
0:00:06.6]} 69... Ke7 {[%clk 0:00:02.7]} 70. Bc8 {[%clk 0:00:06.6]} 70... Rd6+
{[%clk 0:00:02.6]} 71. Kc5 {[%clk 0:00:06.9]} 71... Rb6 {[%clk 0:00:01.3]} 72.
Kxb6 {[%clk 0:00:07.3]} 1-0

[Event "*** Titled Tuesday Blitz"]
[Site "Chess.com"]
[Date "2020.12.01"]
[Round "7"]
[White "parintele_chess"]
[Black "BlixLT"]
[Result "1/2-1/2"]
[WhiteElo "2197"]
[BlackElo "2331"]
[TimeControl "180+1"]
[EndTime "11:18:03 PST"]
[Termination "Game drawn - insufficient material"]

1. c4 {[%clk 0:03:00.9]} 1... Nc6 {[%clk 0:02:58.6]} 2. Nf3 {[%clk 0:02:58.1]}
2... d5 {[%clk 0:02:57.9]} 3. cxd5 {[%clk 0:02:57.9]} 3... Qxd5 {[%clk
0:02:58.1]} 4. Nc3 {[%clk 0:02:58.5]} 4... Qh5 {[%clk 0:02:58.1]} 5. g3 {[%clk
0:02:58.5]} 5... Bh3 {[%clk 0:02:56.7]} 6. Qb3 {[%clk 0:02:56]} 6... O-O-O
{[%clk 0:02:48.4]} 7. Bxh3+ {[%clk 0:02:51.2]} 7... Qxh3 {[%clk 0:02:48.6]} 8.
Qxf7 {[%clk 0:02:51.5]} 8... Nf6 {[%clk 0:02:44.6]} 9. d3 {[%clk 0:02:46]} 9...
e5 {[%clk 0:02:27.3]} 10. Nb5 {[%clk 0:02:29.5]} 10... Rd7 {[%clk 0:02:23.1]}
11. Qb3 {[%clk 0:02:24.2]} 11... a6 {[%clk 0:02:17]} 12. Nc3 {[%clk 0:02:18.6]}
12... Nd4 {[%clk 0:02:16.1]} 13. Nxd4 {[%clk 0:02:18]} 13... Qg2 {[%clk
0:02:12.3]} 14. Rf1 {[%clk 0:02:16.6]} 14... exd4 {[%clk 0:02:12.7]} 15. Nd1
{[%clk 0:02:07]} 15... Qxh2 {[%clk 0:02:07.7]} 16. Bf4 {[%clk 0:01:58.4]} 16...
Bd6 {[%clk 0:02:05.8]} 17. Bxd6 {[%clk 0:01:57.3]} 17... Rxd6 {[%clk 0:02:06.3]}
18. Qf7 {[%clk 0:01:54.9]} 18... Qh6 {[%clk 0:01:55.4]} 19. f4 {[%clk
0:01:33.5]} 19... Nd5 {[%clk 0:01:53.6]} 20. Rc1 {[%clk 0:01:30.6]} 20... Kb8
{[%clk 0:01:47.7]} 21. Nf2 {[%clk 0:01:27.1]} 21... Rhd8 {[%clk 0:01:43.2]} 22.
Rh1 {[%clk 0:01:25.8]} 22... Qg6 {[%clk 0:01:36.5]} 23. Qxg6 {[%clk 0:01:25.8]}
23... Rxg6 {[%clk 0:01:36.7]} 24. Ne4 {[%clk 0:01:20.8]} 24... h6 {[%clk
0:01:31.7]} 25. Kf2 {[%clk 0:01:15.1]} 25... Ne3 {[%clk 0:01:30.2]} 26. Nd2
{[%clk 0:01:03.9]} 26... Re8 {[%clk 0:01:18.1]} 27. Nc4 {[%clk 0:01:03.1]} 27...
Nxc4 {[%clk 0:01:00.1]} 28. Rxc4 {[%clk 0:01:03.8]} 28... Rd6 {[%clk 0:00:59.2]}
29. Rh5 {[%clk 0:00:58.4]} 29... c6 {[%clk 0:00:58.1]} 30. Re5 {[%clk
0:00:48.6]} 30... Rxe5 {[%clk 0:00:49.6]} 31. fxe5 {[%clk 0:00:49.5]} 31... Re6
{[%clk 0:00:50.1]} 32. Rxd4 {[%clk 0:00:49.8]} 32... Rxe5 {[%clk 0:00:50.6]} 33.
Rd7 {[%clk 0:00:48.8]} 33... Rg5 {[%clk 0:00:50.7]} 34. e4 {[%clk 0:00:46]}
34... Kc8 {[%clk 0:00:51.1]} 35. Rf7 {[%clk 0:00:45.3]} 35... Ra5 {[%clk
0:00:47.2]} 36. a3 {[%clk 0:00:44.1]} 36... Rb5 {[%clk 0:00:47.6]} 37. b4 {[%clk
0:00:44.1]} 37... a5 {[%clk 0:00:46.6]} 38. bxa5 {[%clk 0:00:40.1]} 38... Rxa5
{[%clk 0:00:47]} 39. Rxg7 {[%clk 0:00:40]} 39... Rxa3 {[%clk 0:00:46.6]} 40. Ke3
{[%clk 0:00:40.1]} 40... c5 {[%clk 0:00:45]} 41. Kd2 {[%clk 0:00:35]} 41... b6
{[%clk 0:00:18.3]} 42. Rg6 {[%clk 0:00:33.1]} 42... Kc7 {[%clk 0:00:16.5]} 43.
Rxh6 {[%clk 0:00:33]} 43... Ra2+ {[%clk 0:00:16.9]} 44. Ke3 {[%clk 0:00:27.2]}
44... Ra3 {[%clk 0:00:17.1]} 45. Rh1 {[%clk 0:00:20.8]} 45... c4 {[%clk
0:00:16.8]} 46. Rc1 {[%clk 0:00:20.9]} 46... b5 {[%clk 0:00:17.1]} 47. Kd4
{[%clk 0:00:21.1]} 47... Kd6 {[%clk 0:00:13.6]} 48. dxc4 {[%clk 0:00:21.1]}
48... Rxg3 {[%clk 0:00:13.8]} 49. cxb5 {[%clk 0:00:19.3]} 49... Rb3 {[%clk
0:00:14.3]} 50. e5+ {[%clk 0:00:17]} 50... Kd7 {[%clk 0:00:13.6]} 51. Kc5 {[%clk
0:00:15.6]} 51... Re3 {[%clk 0:00:13.6]} 52. Rd1+ {[%clk 0:00:12.3]} 52... Kc8
{[%clk 0:00:14]} 53. Kd6 {[%clk 0:00:11]} 53... Rb3 {[%clk 0:00:13.9]} 54. Rd5
{[%clk 0:00:10.9]} 54... Kd8 {[%clk 0:00:11.6]} 55. e6 {[%clk 0:00:10.4]} 55...
Ke8 {[%clk 0:00:12.1]} 56. Kc6 {[%clk 0:00:09.4]} 56... Ke7 {[%clk 0:00:10]} 57.
b6 {[%clk 0:00:07.3]} 57... Kxe6 {[%clk 0:00:09.3]} 58. Rd1 {[%clk 0:00:06.4]}
58... Rc3+ {[%clk 0:00:08.9]} 59. Kb7 {[%clk 0:00:06.8]} 59... Ke7 {[%clk
0:00:09.1]} 60. Kb8 {[%clk 0:00:06.6]} 60... Ke6 {[%clk 0:00:07]} 61. b7 {[%clk
0:00:06.5]} 61... Rh3 {[%clk 0:00:06]} 62. Rd8 {[%clk 0:00:04]} 62... Rb3 {[%clk
0:00:04.4]} 63. Ka7 {[%clk 0:00:02.7]} 63... Ra3+ {[%clk 0:00:04.5]} 64. Kb6
{[%clk 0:00:02.8]} 64... Rb3+ {[%clk 0:00:04.7]} 65. Kc7 {[%clk 0:00:03.1]}
65... Rc3+ {[%clk 0:00:05]} 66. Kb8 {[%clk 0:00:03.2]} 66... Rh3 {[%clk
0:00:05.1]} 67. Rd1 {[%clk 0:00:02.3]} 67... Rh2 {[%clk 0:00:04.8]} 68. Re1+
{[%clk 0:00:02.5]} 68... Kd6 {[%clk 0:00:04.6]} 69. Rd1+ {[%clk 0:00:02.9]}
69... Kc6 {[%clk 0:00:05.1]} 70. Kc8 {[%clk 0:00:03.1]} 70... Rh8+ {[%clk
0:00:04.1]} 71. Rd8 {[%clk 0:00:03.4]} 71... Rxd8+ {[%clk 0:00:04.7]} 72. Kxd8
{[%clk 0:00:04.3]} 72... Kxb7 {[%clk 0:00:05.2]} 1/2-1/2

[Event "*** Titled Tuesday Blitz"]
[Site "Chess.com"]
[Date "2020.12.01"]
[Round "7"]
[White "Nemsko"]
[Black "WPWPWP-2015"]
[Result "1-0"]
[WhiteElo "2390"]
[BlackElo "2479"]
[TimeControl "180+1"]
[EndTime "11:18:05 PST"]
[Termination "Nemsko won by checkmate"]

1. e4 {[%clk 0:03:00.9]} 1... e5 {[%clk 0:02:57.6]} 2. Nf3 {[%clk 0:02:59.8]}
2... Nf6 {[%clk 0:02:57.8]} 3. Nxe5 {[%clk 0:02:59]} 3... d6 {[%clk 0:02:57.4]}
4. Nc4 {[%clk 0:02:59.1]} 4... Nxe4 {[%clk 0:02:38.4]} 5. Nc3 {[%clk 0:02:58.5]}
5... Nf6 {[%clk 0:02:36.9]} 6. d4 {[%clk 0:02:56.7]} 6... Be7 {[%clk 0:02:36.9]}
7. Bd3 {[%clk 0:02:55.8]} 7... O-O {[%clk 0:02:34.4]} 8. Be3 {[%clk 0:02:52.2]}
8... Nc6 {[%clk 0:02:21.2]} 9. Qd2 {[%clk 0:02:49.5]} 9... Ng4 {[%clk
0:02:14.7]} 10. O-O-O {[%clk 0:02:45.8]} 10... Nxe3 {[%clk 0:02:13.7]} 11. fxe3
{[%clk 0:02:46.7]} 11... Bg5 {[%clk 0:02:11.1]} 12. Kb1 {[%clk 0:02:42]} 12...
Nxd4 {[%clk 0:02:06.9]} 13. Bxh7+ {[%clk 0:02:32.3]} 13... Kxh7 {[%clk
0:02:04.3]} 14. Qxd4 {[%clk 0:02:33.2]} 14... Re8 {[%clk 0:01:49.3]} 15. h4
{[%clk 0:02:21.5]} 15... Bh6 {[%clk 0:01:44]} 16. g4 {[%clk 0:02:19.8]} 16... b5
{[%clk 0:01:09.7]} 17. Nxb5 {[%clk 0:01:57.8]} 17... Rb8 {[%clk 0:01:08.5]} 18.
Nc3 {[%clk 0:01:49.8]} 18... c5 {[%clk 0:01:01.4]} 19. Qd3+ {[%clk 0:01:42.8]}
19... g6 {[%clk 0:01:01.2]} 20. g5 {[%clk 0:01:29.1]} 20... Bg7 {[%clk 0:00:51]}
21. h5 {[%clk 0:01:16]} 21... Kg8 {[%clk 0:00:02.9]} 22. hxg6 {[%clk 0:01:13.7]}
22... f5 {[%clk 0:00:02.2]} 23. gxf6 {[%clk 0:00:35.2]} 23... Qxf6 {[%clk
0:00:02]} 24. Nd5 {[%clk 0:00:24.4]} 24... Qe6 {[%clk 0:00:01.9]} 25. b3 {[%clk
0:00:20.6]} 25... Bb7 {[%clk 0:00:01.4]} 26. Rh5 {[%clk 0:00:17.3]} 26... Bxd5
{[%clk 0:00:01.7]} 27. Qxd5 {[%clk 0:00:18.2]} 27... Qxd5 {[%clk 0:00:02.1]} 28.
Rhxd5 {[%clk 0:00:18.8]} 28... Re6 {[%clk 0:00:02.6]} 29. Rxd6 {[%clk
0:00:19.1]} 29... Rbe8 {[%clk 0:00:02.5]} 30. Rxe6 {[%clk 0:00:19.4]} 30... Rxe6
{[%clk 0:00:02.9]} 31. Rd8+ {[%clk 0:00:19.9]} 31... Bf8 {[%clk 0:00:03.4]} 32.
Rd7 {[%clk 0:00:19.9]} 32... Rxg6 {[%clk 0:00:03.1]} 33. Rxa7 {[%clk 0:00:20.1]}
33... Rg1+ {[%clk 0:00:02.5]} 34. Kb2 {[%clk 0:00:20.5]} 34... Bg7+ {[%clk
0:00:02.9]} 35. Ka3 {[%clk 0:00:20.7]} 35... Bc3 {[%clk 0:00:03.1]} 36. Ra8+
{[%clk 0:00:19.6]} 36... Kg7 {[%clk 0:00:02.8]} 37. Rc8 {[%clk 0:00:18.9]} 37...
Bb4+ {[%clk 0:00:03]} 38. Ka4 {[%clk 0:00:19.4]} 38... Ra1 {[%clk 0:00:03.1]}
39. a3 {[%clk 0:00:18.9]} 39... Kf7 {[%clk 0:00:03.5]} 40. Ra8 {[%clk
0:00:15.3]} 40... Ke6 {[%clk 0:00:03.1]} 41. Kb5 {[%clk 0:00:15.8]} 41... Bc3
{[%clk 0:00:03.2]} 42. Kxc5 {[%clk 0:00:12.4]} 42... Rg1 {[%clk 0:00:03.3]} 43.
Ra6+ {[%clk 0:00:12.3]} 43... Ke7 {[%clk 0:00:03.3]} 44. Ra7+ {[%clk 0:00:11.4]}
44... Ke6 {[%clk 0:00:02.8]} 45. a4 {[%clk 0:00:10.8]} 45... Kf6 {[%clk
0:00:03.2]} 46. Ra6+ {[%clk 0:00:10.6]} 46... Kf5 {[%clk 0:00:02.4]} 47. Rd6
{[%clk 0:00:09.3]} 47... Ke4 {[%clk 0:00:02.5]} 48. Re6+ {[%clk 0:00:09.6]}
48... Kf5 {[%clk 0:00:02.1]} 49. Re8 {[%clk 0:00:09.5]} 49... Kf6 {[%clk
0:00:01.9]} 50. a5 {[%clk 0:00:08.2]} 50... Rg5+ {[%clk 0:00:02]} 51. Kb6 {[%clk
0:00:08.6]} 51... Bb4 {[%clk 0:00:02.3]} 52. a6 {[%clk 0:00:08.1]} 52... Bc5+
{[%clk 0:00:02.6]} 53. Kb7 {[%clk 0:00:08.3]} 53... Rg7+ {[%clk 0:00:02.4]} 54.
Kb8 {[%clk 0:00:07.9]} 54... Rd7 {[%clk 0:00:02.4]} 55. Rc8 {[%clk 0:00:06]}
55... Ba7+ {[%clk 0:00:01.8]} 56. Ka8 {[%clk 0:00:06]} 56... Ke6 {[%clk
0:00:01.8]} 57. Na5 {[%clk 0:00:05]} 57... Bb6 {[%clk 0:00:01.9]} 58. Nc6 {[%clk
0:00:04.7]} 58... Kd6 {[%clk 0:00:02.1]} 59. a7 {[%clk 0:00:04.6]} 59... Rf7
{[%clk 0:00:01.5]} 60. Kb8 {[%clk 0:00:04.9]} 60... Bxa7+ {[%clk 0:00:01.1]} 61.
Nxa7 {[%clk 0:00:05.8]} 61... Re7 {[%clk 0:00:01.3]} 62. Rc6+ {[%clk 0:00:06.1]}
62... Kd5 {[%clk 0:00:01.4]} 63. c4+ {[%clk 0:00:05.3]} 63... Ke4 {[%clk
0:00:01.5]} 64. Rc7 {[%clk 0:00:05.3]} 64... Re8+ {[%clk 0:00:01.3]} 65. Kb7
{[%clk 0:00:05.2]} 65... Re6 {[%clk 0:00:02.2]} 66. c5 {[%clk 0:00:05.1]} 66...
Kxe3 {[%clk 0:00:02.2]} 67. Nc6 {[%clk 0:00:05.4]} 67... Rf6 {[%clk 0:00:01.8]}
68. Re7+ {[%clk 0:00:05.8]} 68... Kd3 {[%clk 0:00:02.2]} 69. b4 {[%clk
0:00:06.3]} 69... Kc4 {[%clk 0:00:02.5]} 70. Re4+ {[%clk 0:00:05.7]} 70... Kb5
{[%clk 0:00:02.8]} 71. Na7+ {[%clk 0:00:05.6]} 71... Ka4 {[%clk 0:00:03]} 72.
b5+ {[%clk 0:00:06.2]} 72... Ka5 {[%clk 0:00:03.3]} 73. c6 {[%clk 0:00:05.2]}
73... Rf7+ {[%clk 0:00:03]} 74. Kb8 {[%clk 0:00:02.8]} 74... Rf8+ {[%clk
0:00:03.2]} 75. Nc8 {[%clk 0:00:02.7]} 75... Kxb5 {[%clk 0:00:02.2]} 76. c7
{[%clk 0:00:03]} 76... Kc6 {[%clk 0:00:02.4]} 77. Rc4+ {[%clk 0:00:02.9]} 77...
Kd7 {[%clk 0:00:02.7]} 78. Kb7 {[%clk 0:00:01.5]} 78... Rxc8 {[%clk 0:00:02.3]}
79. Rd4+ {[%clk 0:00:02.4]} 79... Ke6 {[%clk 0:00:02.7]} 80. Kxc8 {[%clk
0:00:03.3]} 80... Ke5 {[%clk 0:00:03.3]} 81. Rd1 {[%clk 0:00:03.5]} 81... Ke4
{[%clk 0:00:03.7]} 82. Kb7 {[%clk 0:00:04.1]} 82... Ke3 {[%clk 0:00:04.6]} 83.
c8=Q {[%clk 0:00:04.4]} 83... Ke2 {[%clk 0:00:05.5]} 84. Qd7 {[%clk 0:00:04.7]}
84... Ke3 {[%clk 0:00:05.7]} 85. Rd6 {[%clk 0:00:05.3]} 85... Ke4 {[%clk
0:00:06]} 86. Re6+ {[%clk 0:00:06.2]} 86... Kf4 {[%clk 0:00:06.5]} 87. Qf7+
{[%clk 0:00:06.8]} 87... Kg5 {[%clk 0:00:07.1]} 88. Rg6+ {[%clk 0:00:07.7]}
88... Kh4 {[%clk 0:00:07.8]} 89. Qh7# {[%clk 0:00:08.6]} 1-0